bitfinex/quotes_BTCUSD_20241124
["timestamp","ask_amount","ask_price","bid_price","bid_amount"]
[1732469616266,0.002,95686.0,95684.0,0.10201427]
[1732469616957,0.209006,95691.0,95684.0,0.10201427]
[1732469616958,0.106509,95685.0,95684.0,0.10201427]
[1732469617613,0.209014,95688.0,95683.0,0.0008554]
[1732469617614,0.10651,95684.0,95683.0,0.0008554]
[1732469620222,0.002,95684.0,95683.0,0.0008554]
[1732469620651,0.10651,95684.0,95683.0,0.0008554]
[1732469621959,0.197,95688.0,95683.0,0.0008554]
[1732469621960,0.002,95688.0,95683.0,0.0008554]
[1732469622177,0.09455372,95691.0,95684.0,0.15426927]
[1732469622429,0.09455372,95691.0,95686.0,0.052253]
[1732469622660,0.104506,95688.0,95687.0,0.10201427]
[1732469622869,0.002,95688.0,95687.0,0.10201427]
[1732469623092,0.106506,95688.0,95687.0,0.10201427]
[1732469623304,0.104506,95688.0,95687.0,0.10201427]
[1732469623516,0.106506,95688.0,95687.0,0.10201427]
[1732469623734,0.002,95688.0,95687.0,0.10201427]
[1732469624155,0.106506,95688.0,95687.0,0.10201427]
[1732469624330,0.20901,95690.0,95683.0,0.0008554]
[1732469624545,0.104509,95685.0,95684.0,0.10201427]
[1732469624963,0.20901,95690.0,95684.0,0.10201427]
[1732469625168,0.106509,95686.0,95684.0,0.10201427]
[1732469625384,0.002,95686.0,95684.0,0.10201427]
[1732469625585,0.104509,95685.0,95684.0,0.10201427]
[1732469625790,0.106509,95685.0,95684.0,0.10201427]
[1732469626016,0.10651,95684.0,95683.0,0.0008554]
[1732469627019,0.19906372,95684.0,95683.0,0.0008554]
[1732469627227,0.27556372,95684.0,95683.0,0.0008554]
[1732469628854,0.51498999,95684.0,95683.0,0.0008554]
[1732469635279,0.31798999,95684.0,95683.0,0.0008554]
[1732469639612,0.51498999,95684.0,95683.0,0.0008554]
[1732469640526,0.01,95700.0,95695.0,0.01719191]
[1732469640759,0.01,95700.0,95697.0,0.023]
[1732469640997,0.01,95700.0,95699.0,0.023]
[1732469641227,0.01,95700.0,95699.0,0.12501427]
[1732469641462,0.104507,95687.0,95683.0,0.0008554]
[1732469641645,0.104507,95687.0,95683.0,0.12586967]
[1732469641646,0.002,95684.0,95683.0,0.12586967]
[1732469641869,0.002,95684.0,95683.0,0.0008554]
[1732469642079,0.28931809,95684.0,95683.0,0.0008554]
[1732469642292,0.45837181,95684.0,95683.0,0.0008554]
[1732469643212,0.50171645,95684.0,95683.0,0.0008554]
[1732469643461,0.50171645,95684.0,95683.0,0.0006554]
[1732469644127,0.26130809,95684.0,95683.0,0.0006554]
[1732469644378,0.45837181,95684.0,95683.0,0.0006554]
[1732469644603,0.36581809,95684.0,95683.0,0.0006554]
[1732469644841,0.26301889,95684.0,95683.0,0.0006554]
[1732469645072,0.36752889,95684.0,95683.0,0.0006554]
[1732469645542,0.46008261,95684.0,95683.0,0.0006554]
[1732469645786,0.26301889,95684.0,95683.0,0.0006554]
[1732469646035,0.46008261,95684.0,95683.0,0.0006554]
[1732469646657,0.36752889,95684.0,95683.0,0.0006554]
[1732469646893,0.0037108,95684.0,95683.0,0.0006554]
[1732469647334,0.0017108,95684.0,95683.0,0.17792467]
[1732469647780,0.0017108,95684.0,95683.0,0.17896969]
[1732469649622,0.0017108,95684.0,95683.0,0.17792467]
[1732469651662,0.0017108,95684.0,95683.0,0.17896963]
[1732469652161,0.0017108,95684.0,95683.0,0.17792467]
[1732469658485,0.0017108,95684.0,95683.0,0.0006554]
[1732469658903,0.1082208,95684.0,95683.0,0.0006554]
[1732469659541,0.0037108,95684.0,95683.0,0.0006554]
[1732469659751,0.1082208,95684.0,95683.0,0.0006554]
[1732469659957,0.0037108,95684.0,95683.0,0.0006554]
[1732469660176,0.1082208,95684.0,95683.0,0.0006554]
[1732469660388,0.29102889,95684.0,95683.0,0.0006554]
[1732469664031,0.0017108,95684.0,95683.0,0.0006554]
[1732469664180,0.0017108,95684.0,95683.0,0.0759104]
[1732469664628,0.0017108,95684.0,95683.0,0.17896971]
[1732469668358,0.0017108,95684.0,95683.0,0.25992467]
[1732469670565,0.0017108,95684.0,95683.0,0.30792467]
[1732469672806,0.0017108,95684.0,95683.0,0.43256286]
[1732469673036,0.0017108,95684.0,95683.0,0.61417912]
[1732469673716,0.01,95700.0,95683.0,0.61417912]
[1732469673717,0.01,95700.0,95699.0,0.47988519]
[1732469673964,0.01,95700.0,95699.0,0.61351572]
[1732469674169,0.01,95700.0,95699.0,0.58189946]
[1732469675103,0.01099903,95748.0,95746.0,0.60130331]
[1732469675291,0.01099903,95748.0,95746.0,0.08481291]
[1732469675767,0.01099903,95748.0,95746.0,0.10781291]
[1732469676006,0.01099903,95748.0,95746.0,0.12830409]
[1732469676241,0.01099903,95748.0,95746.0,0.26193462]
[1732469676449,0.01099903,95748.0,95746.0,0.17723527]
[1732469683968,0.0037096,95747.0,95746.0,0.17723527]
[1732469684438,0.0017096,95747.0,95746.0,0.17723527]
[1732469684888,0.0333465,95762.0,95746.0,0.17723527]
[1732469684889,0.05294423,95849.0,95754.0,0.023]
[1732469685113,0.208851,95762.0,95756.0,0.023]
[1732469685322,0.0818,95763.0,95758.0,0.023]
[1732469685569,0.104426,95762.0,95758.0,0.023]
[1732469685981,0.20370108,95761.0,95758.0,0.023]
[1732469686225,0.09927408,95761.0,95758.0,0.023]
[1732469686459,0.28723609,95759.0,95758.0,0.023]
[1732469689156,0.28723609,95759.0,95750.0,0.023]
[1732469689377,0.18280809,95759.0,95750.0,0.023]
[1732469689718,0.104434,95754.0,95750.0,0.023]
[1732469689833,0.104434,95754.0,95746.0,0.023]
[1732469690080,0.104434,95754.0,95747.0,0.10201427]
[1732469690329,0.104431,95757.0,95748.0,0.075219]
[1732469690555,0.104432,95756.0,95748.0,0.17723327]
[1732469690787,0.18280809,95757.0,95750.0,0.023]
[1732469690996,0.104432,95756.0,95750.0,0.023]
[1732469691207,0.104432,95756.0,95750.0,0.0008547]
[1732469691418,0.18280809,95757.0,95750.0,0.0008547]
[1732469691419,0.104433,95755.0,95750.0,0.0008547]
[1732469692286,0.104434,95755.0,95750.0,0.0008547]
[1732469692509,0.18280809,95757.0,95750.0,0.0008547]
[1732469692721,0.28723909,95757.0,95750.0,0.0008547]
[1732469692929,0.18280809,95757.0,95750.0,0.0008547]
[1732469693189,0.104432,95756.0,95750.0,0.0008547]
[1732469693683,0.104432,95756.0,95750.0,0.00055931]
[1732469693862,0.18280809,95757.0,95750.0,0.05277831]
[1732469694069,0.18280809,95757.0,95750.0,0.00055931]
[1732469694283,0.0017094,95762.0,95761.0,0.075213]
[1732469694827,0.08426312,95768.0,95765.0,0.05221]
[1732469695040,0.08426312,95768.0,95766.0,0.07521]
[1732469695274,0.0793,95771.0,95768.0,0.023]
[1732469695483,0.0793,95771.0,95755.0,0.03529429]
[1732469695484,0.26381889,95780.0,95777.0,0.052204]
[1732469695706,0.26381889,95780.0,95778.0,0.023]
[1732469695923,0.26381889,95780.0,95777.0,0.023]
[1732469696156,0.26381889,95780.0,95779.0,0.023]
[1732469696586,0.34808201,95780.0,95772.0,0.023]
[1732469696797,0.34808201,95780.0,95771.0,0.10201427]
[1732469696798,0.08426312,95777.0,95774.0,0.023]
[1732469697258,0.08426312,95777.0,95771.0,0.15422127]
[1732469697259,0.08426312,95777.0,95772.0,0.023]
[1732469698628,0.08426312,95777.0,95771.0,0.052207]
[1732469698810,0.08426312,95777.0,95769.0,0.052208]
[1732469699057,0.08426312,95777.0,95770.0,0.052208]
[1732469699701,0.08426312,95777.0,95769.0,0.15422227]
[1732469699940,0.08426312,95777.0,95771.0,0.052207]
[1732469700396,0.08426312,95777.0,95769.0,0.15422227]
[1732469700397,0.08426312,95776.0,95769.0,0.15422227]
[1732469700615,0.08426312,95776.0,95770.0,0.052207]
[1732469700898,0.08426312,95776.0,95769.0,0.10201427]
[1732469701074,0.18867412,95776.0,95769.0,0.10201427]
[1732469701282,0.104412,95775.0,95769.0,0.10201427]
[1732469701491,0.08426312,95776.0,95770.0,0.052207]
[1732469701728,0.08426312,95776.0,95769.0,0.15422227]
[1732469702161,0.104414,95773.0,95763.0,0.052212]
[1732469702399,0.104416,95771.0,95764.0,0.10201427]
[1732469702593,0.26707121,95776.0,95764.0,0.10201427]
[1732469702822,0.104411,95775.0,95765.0,0.05221]
[1732469703032,0.26707121,95776.0,95765.0,0.15422427]
[1732469703239,0.37148121,95776.0,95767.0,0.052209]
[1732469703512,0.37148121,95776.0,95765.0,0.15422427]
[1732469703513,0.08426312,95776.0,95765.0,0.15422427]
[1732469703740,0.08426312,95778.0,95777.0,0.052204]
[1732469703953,0.0017108,95780.0,95779.0,0.052203]
[1732469706189,0.0017108,95780.0,95779.0,0.15421727]
[1732469706426,0.0017108,95780.0,95779.0,0.44399815]
[1732469706640,0.0017108,95780.0,95779.0,0.61512693]
[1732469707559,0.0017108,95780.0,95779.0,0.61161704]
[1732469707794,0.0017108,95780.0,95779.0,0.21153522]
[1732469708014,0.0017108,95780.0,95779.0,0.15421727]
[1732469708472,0.0017108,95780.0,95779.0,0.1552612]
[1732469708702,0.0017108,95780.0,95779.0,0.15421727]
[1732469708874,0.0017108,95780.0,95779.0,0.15526122]
[1732469709342,0.0017108,95780.0,95779.0,0.15421727]
[1732469711194,0.0017108,95780.0,95779.0,0.15526122]
[1732469712962,0.0017108,95780.0,95779.0,0.17826122]
[1732469713214,0.0017108,95780.0,95779.0,0.17721727]
[1732469714494,0.0017108,95780.0,95779.0,0.32826117]
[1732469714704,0.0017108,95780.0,95779.0,0.40781727]
[1732469715816,0.0017108,95780.0,95779.0,0.47110918]
[1732469716037,0.0017108,95780.0,95779.0,0.58684606]
[1732469716262,0.0017108,95780.0,95779.0,0.61656826]
[1732469716498,0.001713,95800.0,95799.0,0.13292879]
[1732469716703,0.001713,95800.0,95799.0,0.46117864]
[1732469716933,0.001713,95800.0,95799.0,0.52418571]
[1732469717387,0.001713,95800.0,95799.0,0.52218571]
[1732469717599,0.001713,95800.0,95799.0,0.52418571]
[1732469718052,0.001713,95800.0,95799.0,0.55815436]
[1732469718254,0.001713,95800.0,95799.0,0.55615436]
[1732469719169,0.001713,95800.0,95799.0,0.55815436]
[1732469719378,0.001713,95800.0,95799.0,0.55573602]
[1732469720491,0.001713,95800.0,95799.0,0.43999914]
[1732469720736,0.001713,95800.0,95799.0,0.33817492]
[1732469720933,0.001713,95800.0,95799.0,0.30420627]
[1732469722945,0.001713,95800.0,95799.0,0.32720627]
[1732469723807,0.001713,95800.0,95799.0,0.10201427]
[1732469724697,0.001713,95800.0,95799.0,0.15420627]
[1732469727423,0.001713,95800.0,95799.0,0.10201427]
[1732469728594,0.09533551,95800.0,95799.0,0.10201427]
[1732469728779,0.001713,95800.0,95799.0,0.10201427]
[1732469728986,0.001713,95800.0,95799.0,0.15420627]
[1732469730499,0.09775624,95800.0,95799.0,0.15420627]
[1732469730704,0.001713,95800.0,95799.0,0.15420627]
[1732469731380,0.10624042,95800.0,95799.0,0.15420627]
[1732469731685,0.001713,95800.0,95799.0,0.15420627]
[1732469732061,0.001713,95800.0,95799.0,0.10201427]
[1732469732271,0.001713,95800.0,95799.0,0.15420627]
[1732469734452,0.001713,95800.0,95799.0,0.10201427]
[1732469734896,0.013713,95800.0,95799.0,0.15420627]
[1732469735125,0.013713,95800.0,95799.0,0.10201427]
[1732469735591,0.013713,95800.0,95799.0,0.15420627]
[1732469736462,0.013713,95800.0,95799.0,0.10201427]
[1732469737329,0.013713,95800.0,95799.0,0.15420627]
[1732469738943,0.11010724,95800.0,95799.0,0.15420627]
[1732469739161,0.013713,95800.0,95799.0,0.15420627]
[1732469741232,0.013713,95800.0,95796.0,0.0530482]
[1732469741233,0.16566312,95799.0,95796.0,0.0008552]
[1732469741482,0.08426312,95798.0,95796.0,0.0008552]
[1732469744601,0.16566312,95799.0,95796.0,0.0008552]
[1732469744816,0.08426312,95798.0,95796.0,0.0008552]
[1732469745516,0.013713,95800.0,95796.0,0.0008552]
[1732469745517,0.09797612,95800.0,95799.0,0.052192]
[1732469745783,0.1052678,95800.0,95799.0,0.15420627]
[1732469746012,0.013713,95800.0,95799.0,0.17720627]
[1732469746483,0.10492599,95800.0,95799.0,0.17720627]
[1732469746695,0.013713,95800.0,95799.0,0.17720627]
[1732469747175,0.013713,95800.0,95799.0,0.32720627]
[1732469747440,0.013713,95800.0,95799.0,0.34639818]
[1732469747882,0.013713,95800.0,95799.0,0.34439818]
[1732469748350,0.013713,95800.0,95799.0,0.32720627]
[1732469751103,0.013713,95800.0,95799.0,0.32920627]
[1732469751552,0.013713,95800.0,95799.0,0.32720627]
[1732469752183,0.013713,95800.0,95799.0,0.32920627]
[1732469752428,0.013713,95800.0,95799.0,0.32720627]
[1732469753061,0.013713,95800.0,95799.0,0.32920627]
[1732469753293,0.013713,95800.0,95799.0,0.32720627]
[1732469753774,0.013713,95800.0,95799.0,0.34639818]
[1732469755134,0.013713,95800.0,95799.0,0.34439818]
[1732469755766,0.013713,95800.0,95799.0,0.34639818]
[1732469757064,0.013713,95800.0,95799.0,0.34439818]
[1732469757295,0.013713,95800.0,95799.0,0.34639818]
[1732469757549,0.013713,95800.0,95799.0,0.32720627]
[1732469762456,0.013713,95800.0,95799.0,0.34639818]
[1732469763378,0.001713,95800.0,95799.0,0.33239818]
[1732469764048,0.001713,95800.0,95799.0,0.64784209]
[1732469764709,0.001713,95800.0,95799.0,0.33239818]
[1732469765358,0.001713,95800.0,95799.0,0.64784439]
[1732469765574,0.001713,95800.0,95799.0,0.64787107]
[1732469765794,0.001713,95800.0,95799.0,0.64987107]
[1732469766013,0.001713,95800.0,95799.0,0.33439818]
[1732469766232,0.001713,95800.0,95799.0,0.64986258]
[1732469766713,0.001713,95800.0,95799.0,0.33439818]
[1732469767135,0.001713,95800.0,95799.0,0.31520627]
[1732469767574,0.001713,95800.0,95799.0,0.63068315]
[1732469767789,0.001713,95800.0,95799.0,0.31520627]
[1732469773140,0.001713,95800.0,95799.0,0.33239818]
[1732469773597,0.001713,95800.0,95799.0,0.33439818]
[1732469773801,0.001713,95800.0,95799.0,0.64987956]
[1732469774038,0.0017102,95809.0,95808.0,0.075187]
[1732469774285,0.0017102,95809.0,95808.0,0.32720127]
[1732469776514,0.0017102,95809.0,95808.0,0.36065789]
[1732469790981,0.0017102,95809.0,95808.0,0.67808918]
[1732469791645,0.0017102,95809.0,95808.0,0.36265789]
[1732469791845,0.0017102,95809.0,95808.0,0.36065789]
[1732469801551,0.0017102,95809.0,95808.0,0.36265789]
[1732469801792,0.0017102,95809.0,95808.0,0.36065789]
[1732469811534,0.1319102,95809.0,95808.0,0.15420127]
[1732469812263,0.08426312,95807.0,95800.0,0.0008552]
[1732469812560,0.0500102,95809.0,95801.0,0.10201427]
[1732469812561,0.16616312,95802.0,95801.0,0.10201427]
[1732469813041,0.16616312,95802.0,95801.0,0.10155017]
[1732469813286,0.16616312,95802.0,95801.0,0.15374117]
[1732469823497,0.0819,95802.0,95801.0,0.15374117]
[1732469823744,0.0017102,95809.0,95808.0,0.052187]
[1732469824023,0.0017102,95809.0,95808.0,0.15420127]
[1732469824241,0.0017102,95809.0,95808.0,0.15524495]
[1732469824491,0.0017102,95809.0,95808.0,0.33024495]
[1732469824721,0.0017102,95809.0,95808.0,0.32720127]
[1732469825945,0.0017102,95809.0,95808.0,0.34639318]
[1732469826418,0.0017102,95809.0,95808.0,0.3799167]
[1732469829835,2e-07,95809.0,95808.0,0.49565358]
[1732469830271,2e-07,95809.0,95808.0,0.81099498]
[1732469830698,2e-07,95809.0,95808.0,0.49565358]
[1732469831549,2e-07,95809.0,95808.0,0.54125358]
[1732469832785,2e-07,95809.0,95808.0,0.53925358]
[1732469833058,2e-07,95809.0,95808.0,0.54125358]
[1732469833415,2e-07,95809.0,95808.0,0.54113282]
[1732469835054,2e-07,95813.0,95812.0,0.33711379]
[1732469835249,2e-07,95813.0,95812.0,0.46212806]
[1732469836102,0.0784,95841.0,95840.0,0.05217]
[1732469836312,0.0784,95841.0,95840.0,0.15418427]
[1732469836524,0.07980319,95841.0,95840.0,0.30418427]
[1732469836735,0.0784,95841.0,95840.0,0.30418427]
[1732469837566,0.0784,95841.0,95840.0,0.15407686]
[1732469838004,0.07980319,95841.0,95840.0,0.15407686]
[1732469842647,0.0784,95841.0,95840.0,0.15407686]
[1732469844335,0.0784,95841.0,95840.0,0.1551202]
[1732469844532,0.0784,95841.0,95840.0,0.3051202]
[1732469844757,0.0784,95841.0,95840.0,0.30407686]
[1732469844978,0.0801102,95841.0,95840.0,0.30407686]
[1732469846367,0.0017102,95841.0,95840.0,0.30407686]
[1732469847722,0.0017102,95841.0,95840.0,0.30607686]
[1732469847996,0.0017102,95841.0,95840.0,0.30407686]
[1732469850170,0.0012102,95841.0,95840.0,0.30407686]
[1732469851034,0.0816102,95841.0,95840.0,0.30407686]
[1732469851545,0.16312152,95841.0,95840.0,0.30407686]
[1732469851916,0.0816102,95841.0,95840.0,0.30407686]
[1732469854471,0.0012102,95841.0,95840.0,0.30407686]
[1732469855163,0.0012102,95841.0,95840.0,0.30607686]
[1732469856498,0.0012102,95841.0,95840.0,0.30506109]
[1732469857142,0.0012102,95841.0,95840.0,0.30306109]
[1732469862358,0.0012102,95841.0,95840.0,0.30506109]
[1732469862569,0.0012102,95841.0,95840.0,0.30306109]
[1732469865949,0.0504102,95841.0,95840.0,0.30306109]
[1732469866680,0.0012102,95841.0,95840.0,0.30306109]
[1732469868454,0.0012102,95841.0,95840.0,0.30591589]
[1732469869093,0.0012102,95841.0,95840.0,0.30391589]
[1732469872193,0.0017092,95876.0,95840.0,0.30391589]
[1732469872194,0.08426312,95866.0,95865.0,0.052156]
[1732469872260,0.08426312,95866.0,95865.0,0.15417027]
[1732469872624,0.21646312,95866.0,95865.0,0.15417027]
[1732469877829,0.39927121,95866.0,95865.0,0.052156]
[1732469878082,0.08426312,95864.0,95863.0,0.052157]
[1732469878264,0.20926312,95864.0,95863.0,0.052157]
[1732469878477,0.08426312,95863.0,95861.0,0.052158]
[1732469878711,0.0761,95862.0,95861.0,0.052158]
[1732469879604,0.0761,95862.0,95861.0,0.15417227]
[1732469880690,0.0761,95862.0,95853.0,0.052162]
[1732469880691,0.08426312,95849.0,95838.0,0.31585647]
[1732469880973,0.0761,95850.0,95814.0,0.052184]
[1732469880974,0.08426312,95842.0,95841.0,0.10201427]
[1732469881202,0.39207121,95841.0,95827.0,0.052177]
[1732469881451,0.39207121,95841.0,95836.0,0.052172]
[1732469881672,0.39207121,95841.0,95840.0,0.0530248]
[1732469881892,0.39207121,95841.0,95840.0,0.0008548]
[1732469882112,0.39207121,95841.0,95840.0,0.0530248]
[1732469882321,0.0489,95851.0,95840.0,0.10286907]
[1732469882587,0.0761,95848.0,95847.0,0.052166]
[1732469882797,0.0761,95848.0,95847.0,0.15418027]
[1732469886165,0.08426312,95841.0,95840.0,0.0530248]
[1732469886386,0.39587121,95841.0,95840.0,0.0008548]
[1732469887483,0.50021021,95841.0,95840.0,0.0008548]
[1732469888322,0.39587121,95841.0,95840.0,0.0008548]
[1732469889171,0.50021021,95841.0,95840.0,0.0008548]
[1732469891189,0.58011839,95841.0,95840.0,0.0008548]
[1732469892957,0.61448713,95841.0,95840.0,0.0008548]
[1732469900512,0.53457895,95841.0,95840.0,0.0008548]
[1732469905880,1.05959322,95841.0,95840.0,0.0008548]
[1732469906091,1.21159322,95841.0,95840.0,0.0008548]
[1732469906537,1.20959322,95841.0,95840.0,0.0008548]
[1732469907014,0.26707121,95813.0,95806.0,0.052188]
[1732469907234,0.26707121,95813.0,95811.0,0.052185]
[1732469907478,0.08426312,95813.0,95812.0,0.0530398]
[1732469913812,0.08426312,95813.0,95812.0,0.15505407]
[1732469915357,0.08426312,95813.0,95812.0,0.10286907]
[1732469915572,0.08426312,95813.0,95812.0,0.15505407]
[1732469915781,0.08426312,95813.0,95812.0,0.10286907]
[1732469915991,0.08426312,95813.0,95812.0,0.15505407]
[1732469920943,0.08426312,95813.0,95812.0,0.10286907]
[1732469921430,0.08426312,95813.0,95812.0,0.15505407]
[1732469923880,0.08414258,95813.0,95812.0,0.15505407]
[1732469925623,0.08414258,95813.0,95812.0,0.10286907]
[1732469925772,0.08414258,95813.0,95812.0,0.15505407]
[1732469926432,0.08414258,95813.0,95812.0,0.10286907]
[1732469928945,0.08414258,95813.0,95812.0,0.09994072]
[1732469929384,0.08414258,95813.0,95812.0,0.15212572]
[1732469929862,0.08414258,95813.0,95812.0,0.09994072]
[1732469939686,0.08414258,95813.0,95812.0,0.10079642]
[1732469939903,0.08585398,95813.0,95812.0,0.10079642]
[1732469940384,0.08585398,95813.0,95812.0,0.15298142]
[1732469941329,0.08585398,95813.0,95812.0,0.10079642]
[1732469942493,0.08585398,95813.0,95812.0,0.15298142]
[1732469943211,0.0017114,95813.0,95812.0,0.30402511]
[1732469943452,0.0017114,95813.0,95812.0,0.42948142]
[1732469943909,0.0017114,95813.0,95812.0,0.43148142]
[1732469944168,0.0017114,95813.0,95812.0,0.46512622]
[1732469944627,0.0017114,95813.0,95812.0,0.46312622]
[1732469945543,0.0017114,95813.0,95812.0,0.46512622]
[1732469945753,0.0017114,95813.0,95812.0,0.46312622]
[1732469952212,0.0017114,95813.0,95812.0,0.46512622]
[1732469952907,0.0017114,95813.0,95812.0,0.46312622]
[1732469954111,0.0017114,95813.0,95812.0,0.50212855]
[1732469954360,0.0774114,95813.0,95812.0,0.18662622]
[1732469954755,0.0774114,95813.0,95812.0,0.15298142]
[1732469954972,0.16155398,95813.0,95812.0,0.10079642]
[1732469955203,0.16155398,95813.0,95812.0,0.15298142]
[1732469955428,0.16155398,95813.0,95812.0,0.10079642]
[1732469956321,0.16155398,95813.0,95812.0,0.15298142]
[1732469956828,0.16155398,95813.0,95812.0,0.10079642]
[1732469957040,0.16155398,95813.0,95812.0,0.15298142]
[1732469959097,0.16155398,95813.0,95812.0,0.10079642]
[1732469959811,0.16155398,95813.0,95812.0,0.15298142]
[1732469963856,0.16155398,95813.0,95812.0,0.10079642]
[1732469964317,0.16155398,95813.0,95812.0,0.15298142]
[1732469974674,0.16155398,95813.0,95812.0,0.15158142]
[1732469980684,0.08585398,95813.0,95812.0,0.15158142]
[1732469988953,0.07042874,95813.0,95812.0,0.15158142]
[1732469990253,0.07042874,95813.0,95812.0,0.16098242]
[1732469993344,0.15332874,95813.0,95812.0,0.16098242]
[1732469997850,0.07214014,95813.0,95812.0,0.16098242]
[1732469998955,0.0017114,95813.0,95812.0,0.16098242]
[1732469999596,0.07214014,95813.0,95812.0,0.16098242]
[1732470000065,0.0017114,95813.0,95812.0,0.16098242]
[1732470000549,0.07214014,95813.0,95812.0,0.16098242]
[1732470001938,0.0017114,95813.0,95812.0,0.16098242]
[1732470002358,0.07214014,95813.0,95812.0,0.16098242]
[1732470002804,0.0017114,95813.0,95812.0,0.16098242]
[1732470003476,0.07214014,95813.0,95812.0,0.16098242]
[1732470003698,0.0017114,95813.0,95812.0,0.16098242]
[1732470003945,0.07214014,95813.0,95812.0,0.16098242]
[1732470016124,0.11854014,95813.0,95812.0,0.16098242]
[1732470016370,0.19804014,95813.0,95812.0,0.10879742]
[1732470016614,0.48521723,95813.0,95812.0,0.0102567]
[1732470022317,0.38084823,95813.0,95812.0,0.0102567]
[1732470023267,0.48521723,95813.0,95812.0,0.0102567]
[1732470024063,0.38084823,95813.0,95812.0,0.0102567]
[1732470024298,0.48521723,95813.0,95812.0,0.0102567]
[1732470028138,0.38084823,95813.0,95812.0,0.0102567]
[1732470028577,0.19804014,95813.0,95812.0,0.0624417]
[1732470028930,0.38084823,95813.0,95812.0,0.0624417]
[1732470029047,0.38084823,95813.0,95812.0,0.0102567]
[1732470030150,0.38084823,95813.0,95812.0,0.0624417]
[1732470031791,0.33444823,95813.0,95812.0,0.0624417]
[1732470032286,0.33622356,95813.0,95812.0,0.0624417]
[1732470032665,0.33622356,95813.0,95812.0,0.16445597]
[1732470032666,0.00348673,95813.0,95812.0,0.16445597]
[1732470032899,0.00348673,95813.0,95812.0,0.31445597]
[1732470033119,0.00348673,95813.0,95812.0,0.31645597]
[1732470033343,0.0017114,95813.0,95812.0,0.39625597]
[1732470035242,0.0017114,95813.0,95812.0,0.41925597]
[1732470037717,0.0017114,95813.0,95812.0,0.42125597]
[1732470037970,0.0017114,95813.0,95812.0,0.41925597]
[1732470040231,0.0017114,95813.0,95812.0,0.42125597]
[1732470040730,0.0017114,95813.0,95812.0,0.41925597]
[1732470044792,0.0014114,95813.0,95812.0,0.41925597]
[1732470047163,0.0014114,95813.0,95812.0,0.31445597]
[1732470047624,0.30660914,95813.0,95812.0,0.11227097]
[1732470047861,0.0014114,95813.0,95812.0,0.16445597]
[1732470048127,0.07383282,95813.0,95812.0,0.16445597]
[1732470048346,0.0014114,95813.0,95812.0,0.16445597]
[1732470048604,0.00340146,95813.0,95812.0,0.16445597]
[1732470048847,0.00340146,95813.0,95812.0,0.31445597]
[1732470049069,0.0014114,95813.0,95812.0,0.31445597]
[1732470051060,0.0014114,95813.0,95812.0,0.31428597]
[1732470051771,0.0014114,95813.0,95812.0,0.34749691]
[1732470055796,0.0014114,95813.0,95812.0,0.49669691]
[1732470058010,0.0014114,95813.0,95812.0,0.51388882]
[1732470061015,0.0014114,95813.0,95812.0,0.51383882]
[1732470065432,0.0014114,95813.0,95812.0,0.51183882]
[1732470065633,0.0014114,95813.0,95812.0,0.51383882]
[1732470068083,0.0014114,95813.0,95812.0,0.51183882]
[1732470068376,0.0014114,95813.0,95812.0,0.49464691]
[1732470068512,0.0014114,95813.0,95812.0,0.51183882]
[1732470068735,0.0014114,95813.0,95812.0,0.43603882]
[1732470069364,0.0014114,95813.0,95812.0,0.37044691]
[1732470069784,0.0014114,95813.0,95812.0,0.38763882]
[1732470070000,0.0014114,95813.0,95812.0,0.37044691]
[1732470070537,0.0014114,95813.0,95812.0,0.34744691]
[1732470070736,0.0014114,95813.0,95812.0,0.16423597]
[1732470071179,0.00380357,95813.0,95812.0,0.16423597]
[1732470071399,0.00380357,95813.0,95812.0,0.11205097]
[1732470071601,0.00380357,95813.0,95812.0,0.16423597]
[1732470073831,0.00380357,95813.0,95812.0,0.33723597]
[1732470074308,0.0014114,95813.0,95812.0,0.33923597]
[1732470074957,0.0014114,95813.0,95812.0,0.33723597]
[1732470089565,0.0014114,95813.0,95812.0,0.33923597]
[1732470090871,0.0014114,95813.0,95812.0,0.33723597]
[1732470092724,0.0014114,95813.0,95812.0,0.65315078]
[1732470092952,0.0014114,95813.0,95812.0,0.33723597]
[1732470094137,0.0014114,95813.0,95812.0,0.65315078]
[1732470095039,0.0014114,95813.0,95812.0,0.67034269]
[1732470095275,0.1286,95830.0,95829.0,0.075176]
[1732470095506,0.1286,95830.0,95829.0,0.32719027]
[1732470095940,0.079,95830.0,95829.0,0.32719027]
[1732470099222,0.08139772,95830.0,95829.0,0.32719027]
[1732470100695,0.08310872,95830.0,95829.0,0.32719027]
[1732470100985,0.08310872,95830.0,95829.0,0.3607973]
[1732470101416,0.080711,95830.0,95829.0,0.3607973]
[1732470101622,0.08310872,95830.0,95829.0,0.3607973]
[1732470103850,0.08310872,95830.0,95829.0,0.32719027]
[1732470104466,0.080711,95830.0,95829.0,0.32719027]
[1732470104921,0.08311168,95830.0,95829.0,0.32719027]
[1732470107332,0.08311168,95830.0,95829.0,0.30419027]
[1732470107806,0.07042874,95821.0,95814.0,0.31600576]
[1732470108020,0.104364,95818.0,95815.0,0.10201427]
[1732470108246,0.07042874,95820.0,95815.0,0.10201427]
[1732470108247,0.0485,95817.0,95815.0,0.10201427]
[1732470108489,0.0789,95816.0,95815.0,0.10201427]
[1732470108720,0.14932874,95816.0,95815.0,0.10201427]
[1732470108962,0.30485635,95816.0,95815.0,0.10201427]
[1732470110138,0.30485635,95816.0,95811.0,0.00996]
[1732470110139,0.35760583,95813.0,95811.0,0.00996]
[1732470110291,0.35760583,95813.0,95812.0,0.11205097]
[1732470110292,0.48500583,95813.0,95812.0,0.11205097]
[1732470110730,0.48765812,95813.0,95812.0,0.11205097]
[1732470113070,0.38328912,95813.0,95812.0,0.11205097]
[1732470113298,0.48765812,95813.0,95812.0,0.11205097]
[1732470113525,0.38328912,95813.0,95812.0,0.11205097]
[1732470113746,0.20048103,95813.0,95812.0,0.11205097]
[1732470114021,0.20048103,95813.0,95812.0,0.16423597]
[1732470114481,0.19782874,95813.0,95812.0,0.16423597]
[1732470114701,0.20046641,95813.0,95812.0,0.16423597]
[1732470117033,0.20046641,95813.0,95812.0,0.19892637]
[1732470120797,0.20046641,95813.0,95812.0,0.22192637]
[1732470120798,0.08153767,95813.0,95812.0,0.22192637]
[1732470121044,0.15196641,95813.0,95812.0,0.22192637]
[1732470128589,0.08153767,95813.0,95812.0,0.22192637]
[1732470128817,0.15196641,95813.0,95812.0,0.22192637]
[1732470129040,0.08153767,95813.0,95812.0,0.22192637]
[1732470129269,0.15196641,95813.0,95812.0,0.22192637]
[1732470130170,0.08153767,95813.0,95812.0,0.22192637]
[1732470134106,0.00263767,95813.0,95812.0,0.37192637]
[1732470134563,0.07042874,95824.0,95823.0,0.075179]
[1732470134781,0.0829,95827.0,95824.0,0.075178]
[1732470134782,0.07042874,95825.0,95824.0,0.075178]